Workbook

Sheet Sheet1
A1: #hidecolumn | B1: GPS MONTHLY SALES REPORT
C3: YEAR | D3: =YEAR($C$10) -> 2024 | E3: 2017
C4: ALIGNMENT | D4: 001442-BKC (Thibodaux) | F4: =LEFT(D4,10) -> 001442-BKC
A5: =IFERROR(IF(D5="","#hiderow",IF(D5=0,"hiderow","")),"hiderow") -> #hiderow | C5: VENDOR INFO
A6: =IFERROR(IF(D6="","#hiderow",IF(D6=0,"hiderow","")),"hiderow") -> #hiderow | C6: VENDOR FAX
A7: =IFERROR(IF(D7="","#hiderow",IF(D7=0,"hiderow","")),"hiderow") -> #hiderow | C7: VENDOR EMAIL
D9: Sales
B10: 2 | C10: =EOMONTH('[1]Annual % Report - 2023'!$C$21,1) -> 2024-01-31 | D10: =VLOOKUP($F$4,'[2]BKC PIVOT'!$A:$M,$B10,FALSE) -> 235071.6
B11: 3 | C11: =EOMONTH(C10,1) -> 2024-02-29 | D11: =VLOOKUP($F$4,'[2]BKC PIVOT'!$A:$M,$B11,FALSE) -> 246218.07
B12: 4 | C12: =EOMONTH(C11,1) -> 2024-03-31 | D12: =VLOOKUP($F$4,'[2]BKC PIVOT'!$A:$M,$B12,FALSE) -> 260850.79
B13: 5 | C13: 2024-04-30 | D13: =VLOOKUP($F$4,'[2]BKC PIVOT'!$A:$M,$B13,FALSE) -> 244260.22
B14: 6 | C14: 2024-05-31 | D14: =VLOOKUP($F$4,'[2]BKC PIVOT'!$A:$M,$B14,FALSE) -> 253799.25
B15: 7 | C15: 2024-06-30 | D15: =VLOOKUP($F$4,'[2]BKC PIVOT'!$A:$M,$B15,FALSE) -> 249325.81
B16: 8 | C16: 2024-07-31 | D16: =VLOOKUP($F$4,'[2]BKC PIVOT'!$A:$M,$B16,FALSE) -> 239529.56
B17: 9 | C17: 2024-08-31 | D17: =VLOOKUP($F$4,'[2]BKC PIVOT'!$A:$M,$B17,FALSE) -> 250273.31
B18: 10 | C18: 2024-09-30 | D18: =VLOOKUP($F$4,'[2]BKC PIVOT'!$A:$M,$B18,FALSE) -> 245249.5
B19: 11 | C19: 2024-10-31 | D19: =VLOOKUP($F$4,'[2]BKC PIVOT'!$A:$M,$B19,FALSE) -> 276829.54
B20: 12 | C20: 2024-11-30 | D20: =VLOOKUP($F$4,'[2]BKC PIVOT'!$A:$M,$B20,FALSE) -> 252265.07
B21: 13 | C21: 2024-12-31 | D21: =VLOOKUP($F$4,'[2]BKC PIVOT'!$A:$M,$B21,FALSE) -> 270441.53
